[Event "Titled Tuesday Blitz May 30 Early 2023"]
[White "Moral Garcia, Serafin"]
[Black "Herrera Reyes, Jose Antonio"]
[WhiteFideId "2201925"]
[BlackFideId "2274914"]
[WhiteElo "2274"]
[BlackElo "2272"]
[Result "0-1"]
[Round "02"]
[TimeControl "180+2"]
[Date "2023.05.30"]
[WhiteClock "0:00:18"]
[BlackClock "0:00:49"]

1. c4 {[%clk 0:03:00]}  Nf6 {[%clk 0:02:59]} 2. Nc3 {[%clk 0:02:59]}  g6 {[%clk 0:03:00]} 3. g3 {[%clk 0:03:00]}  Bg7 {[%clk 0:03:01]} 4. Bg2 {[%clk 0:03:00]}  d6 {[%clk 0:03:01]} 5. d3 {[%clk 0:03:00]}  h5 {[%clk 0:03:01]} 6. h4 {[%clk 0:02:57]}  Nc6 {[%clk 0:03:01]} 7. Rb1 {[%clk 0:02:53]}  O-O {[%clk 0:03:02]} 8. b4 {[%clk 0:02:52]}  Ng4 {[%clk 0:03:02]} 9. Bd2 {[%clk 0:02:52]}  a6 {[%clk 0:03:01]} 10. Nf3 {[%clk 0:02:50]}  e5 {[%clk 0:03:01]} 11. a4 {[%clk 0:02:44]}  f5 {[%clk 0:03:00]} 12. Nd5 {[%clk 0:02:36]}  Be6 {[%clk 0:02:57]} 13. Ng5 {[%clk 0:02:31]}  Bd7 {[%clk 0:02:55]} 14. b5 {[%clk 0:02:29]}  axb5 {[%clk 0:02:55]} 15. axb5 {[%clk 0:02:29]}  Nd4 {[%clk 0:02:55]} 16. e3 {[%clk 0:02:06]}  Ne6 {[%clk 0:02:53]} 17. Nxe6 {[%clk 0:02:00]}  Bxe6 {[%clk 0:02:54]} 18. O-O {[%clk 0:01:54]}  Kh7 {[%clk 0:02:51]} 19. Ra1 {[%clk 0:01:36]}  Qd7 {[%clk 0:02:31]} 20. Qe2 {[%clk 0:01:23]}  Bxd5 {[%clk 0:02:16]} 21. Bxd5 {[%clk 0:01:21]}  c6 {[%clk 0:01:59]} 22. bxc6 {[%clk 0:01:20]}  bxc6 {[%clk 0:02:00]} 23. Bg2 {[%clk 0:01:17]}  d5 {[%clk 0:01:58]} 24. Bc3 {[%clk 0:01:09]}  Qe6 {[%clk 0:01:50]} 25. cxd5 {[%clk 0:01:06]}  cxd5 {[%clk 0:01:51]} 26. Qb2 {[%clk 0:00:56]}  Rab8 {[%clk 0:01:49]} 27. Qd2 {[%clk 0:00:49]}  Rfc8 {[%clk 0:01:35]} 28. Rfb1 {[%clk 0:00:45]}  Qd7 {[%clk 0:01:19]} 29. d4 {[%clk 0:00:44]}  e4 {[%clk 0:01:19]} 30. Bb4 {[%clk 0:00:39]}  Rb5 {[%clk 0:01:06]} 31. Bc5 {[%clk 0:00:39]}  Rcb8 {[%clk 0:01:06]} 32. Rxb5 {[%clk 0:00:38]}  Qxb5 {[%clk 0:01:07]} 33. Bf1 {[%clk 0:00:35]}  Qb2 {[%clk 0:01:07]} 34. Ra2 {[%clk 0:00:35]}  Qb1 {[%clk 0:01:07]} 35. Kg2 {[%clk 0:00:33]}  Rb3 {[%clk 0:01:03]} 36. Qc2 {[%clk 0:00:30]}  Qxc2 {[%clk 0:00:57]} 37. Rxc2 {[%clk 0:00:31]}  Rxe3 {[%clk 0:00:57]} 38. Ra2 {[%clk 0:00:28]}  Rd3 {[%clk 0:00:54]} 39. Ra7 {[%clk 0:00:27]}  Kh6 {[%clk 0:00:54]} 40. Bxd3 {[%clk 0:00:24]}  exd3 {[%clk 0:00:55]} 41. Ra3 {[%clk 0:00:24]}  g5 {[%clk 0:00:50]} 42. hxg5+ {[%clk 0:00:21]}  Kxg5 {[%clk 0:00:51]} 43. Be7+ {[%clk 0:00:21]}  Kg6 {[%clk 0:00:51]} 44. Rxd3 {[%clk 0:00:20]}  f4 {[%clk 0:00:51]} 45. gxf4 {[%clk 0:00:20]}  Kf5 {[%clk 0:00:52]} 46. Kf3 {[%clk 0:00:20]}  Nh2+ {[%clk 0:00:51]} 47. Ke3 {[%clk 0:00:21]}  Ng4+ {[%clk 0:00:51]} 48. Kd2 {[%clk 0:00:20]}  Nxf2 {[%clk 0:00:50]} 49. Rh3 {[%clk 0:00:20]}  Nxh3 {[%clk 0:00:49]} 50. Ke3 {[%clk 0:00:18]}  Nxf4 {[%clk 0:00:49]} 0-1


[Site "https://www.chess.com"]

[Event "Titled Tuesday Blitz May 30 Early 2023"]
[White "Seo, Jung Min"]
[Black "Ladan, Nicholas"]
[WhiteFideId "1734687"]
[BlackFideId "30918855"]
[WhiteElo "2468"]
[BlackElo "2167"]
[Result "1-0"]
[Round "02"]
[TimeControl "180+2"]
[Date "2023.05.30"]
[WhiteClock "0:00:19"]
[BlackClock "0:00:04"]

1. b3 {[%clk 0:02:59]}  d5 {[%clk 0:02:59]} 2. Bb2 {[%clk 0:03:00]}  Bg4 {[%clk 0:02:59]} 3. h3 {[%clk 0:02:59]}  Bh5 {[%clk 0:02:59]} 4. g4 {[%clk 0:02:59]}  Bg6 {[%clk 0:03:00]} 5. Nf3 {[%clk 0:02:59]}  f6 {[%clk 0:02:58]} 6. d4 {[%clk 0:02:57]}  c5 {[%clk 0:02:54]} 7. e3 {[%clk 0:02:52]}  Nc6 {[%clk 0:02:50]} 8. Nc3 {[%clk 0:02:49]}  e6 {[%clk 0:02:46]} 9. Qd2 {[%clk 0:02:46]}  Bd6 {[%clk 0:02:43]} 10. O-O-O {[%clk 0:02:37]}  Nb4 {[%clk 0:02:32]} 11. Ne1 {[%clk 0:02:25]}  cxd4 {[%clk 0:02:13]} 12. Qxd4 {[%clk 0:02:17]}  Ne7 {[%clk 0:02:00]} 13. a3 {[%clk 0:02:10]}  Nbc6 {[%clk 0:01:54]} 14. Qd2 {[%clk 0:02:10]}  Qa5 {[%clk 0:01:47]} 15. Nb5 {[%clk 0:02:09]}  Qxd2+ {[%clk 0:01:36]} 16. Rxd2 {[%clk 0:02:09]}  O-O-O {[%clk 0:01:35]} 17. Nxd6+ {[%clk 0:02:07]}  Rxd6 {[%clk 0:01:34]} 18. Bg2 {[%clk 0:02:05]}  Kb8 {[%clk 0:01:28]} 19. a4 {[%clk 0:02:04]}  Rc8 {[%clk 0:01:28]} 20. Ba3 {[%clk 0:02:02]}  Rd7 {[%clk 0:01:28]} 21. Kb2 {[%clk 0:02:02]}  a5 {[%clk 0:01:09]} 22. Nd3 {[%clk 0:02:01]}  Bxd3 {[%clk 0:01:09]} 23. Rxd3 {[%clk 0:01:59]}  Nb4 {[%clk 0:01:09]} 24. Rd2 {[%clk 0:01:53]}  Nec6 {[%clk 0:01:09]} 25. c3 {[%clk 0:01:51]}  Na6 {[%clk 0:01:05]} 26. Rhd1 {[%clk 0:01:50]}  Nc7 {[%clk 0:00:43]} 27. c4 {[%clk 0:01:42]}  Rcd8 {[%clk 0:00:34]} 28. Bc5 {[%clk 0:01:34]}  Nb4 {[%clk 0:00:26]} 29. Bxb4 {[%clk 0:01:28]}  axb4 {[%clk 0:00:25]} 30. cxd5 {[%clk 0:01:28]}  Nxd5 {[%clk 0:00:23]} 31. Rd4 {[%clk 0:01:13]}  Nc3 {[%clk 0:00:19]} 32. R1d2 {[%clk 0:01:01]}  Rxd4 {[%clk 0:00:19]} 33. exd4 {[%clk 0:01:00]}  e5 {[%clk 0:00:19]} 34. d5 {[%clk 0:00:58]}  Kc7 {[%clk 0:00:20]} 35. Kc2 {[%clk 0:00:57]}  Kd6 {[%clk 0:00:20]} 36. Kd3 {[%clk 0:00:57]}  Rc8 {[%clk 0:00:19]} 37. Rc2 {[%clk 0:00:53]}  Rc5 {[%clk 0:00:19]} 38. f4 {[%clk 0:00:31]}  exf4 {[%clk 0:00:18]} 39. Rf2 {[%clk 0:00:31]}  Nxd5 {[%clk 0:00:16]} 40. Bxd5 {[%clk 0:00:30]}  Kxd5 {[%clk 0:00:15]} 41. Rxf4 {[%clk 0:00:29]}  Rc3+ {[%clk 0:00:16]} 42. Kd2 {[%clk 0:00:29]}  Rxb3 {[%clk 0:00:16]} 43. Rf5+ {[%clk 0:00:29]}  Kc4 {[%clk 0:00:15]} 44. Rb5 {[%clk 0:00:29]}  Rxh3 {[%clk 0:00:13]} 45. Rxb7 {[%clk 0:00:29]}  Rh2+ {[%clk 0:00:14]} 46. Kc1 {[%clk 0:00:27]}  b3 {[%clk 0:00:14]} 47. a5 {[%clk 0:00:26]}  Kc3 {[%clk 0:00:13]} 48. Rc7+ {[%clk 0:00:26]}  Kb4 {[%clk 0:00:14]} 49. a6 {[%clk 0:00:22]}  b2+ {[%clk 0:00:11]} 50. Kb1 {[%clk 0:00:21]}  Kb3 {[%clk 0:00:10]} 51. Rb7+ {[%clk 0:00:19]}  Ka3 {[%clk 0:00:08]} 52. a7 {[%clk 0:00:20]}  Rh1+ {[%clk 0:00:07]} 53. Kc2 {[%clk 0:00:21]}  Rc1+ {[%clk 0:00:06]} 54. Kd2 {[%clk 0:00:21]}  Rc8 {[%clk 0:00:06]} 55. Rb8 {[%clk 0:00:20]}  b1=Q {[%clk 0:00:04]} 56. a8=Q# {[%clk 0:00:19]} 1-0


[Site "https://www.chess.com"]

[Event "Titled Tuesday Blitz May 30 Early 2023"]
[White "Boyer, Mahel"]
[Black "Staudenhocker43"]
[WhiteFideId "45102422"]
[WhiteElo "2439"]
[BlackElo "2527"]
[Result "1/2-1/2"]
[Round "02"]
[TimeControl "180+2"]
[Date "2023.05.30"]
[WhiteClock "0:00:07"]
[BlackClock "0:00:06"]

1. e4 {[%clk 0:03:00]}  e5 {[%clk 0:02:58]} 2. Nf3 {[%clk 0:02:32]}  Nf6 {[%clk 0:02:58]} 3. Qe2 {[%clk 0:02:05]}  Nc6 {[%clk 0:02:47]} 4. c3 {[%clk 0:01:55]}  d5 {[%clk 0:02:35]} 5. d3 {[%clk 0:01:41]}  dxe4 {[%clk 0:02:30]} 6. dxe4 {[%clk 0:01:41]}  Bc5 {[%clk 0:02:28]} 7. h3 {[%clk 0:01:41]}  O-O {[%clk 0:02:27]} 8. g3 {[%clk 0:01:36]}  a5 {[%clk 0:02:25]} 9. Be3 {[%clk 0:01:28]}  Nxe4 {[%clk 0:02:19]} 10. Bg2 {[%clk 0:01:28]}  Bxe3 {[%clk 0:02:07]} 11. Qxe3 {[%clk 0:01:29]}  Nd6 {[%clk 0:02:05]} 12. Nbd2 {[%clk 0:00:58]}  e4 {[%clk 0:02:00]} 13. Nd4 {[%clk 0:00:57]}  Nxd4 {[%clk 0:01:59]} 14. Qxd4 {[%clk 0:00:57]}  Bf5 {[%clk 0:01:33]} 15. O-O-O {[%clk 0:00:54]}  Qe7 {[%clk 0:01:24]} 16. Rhe1 {[%clk 0:00:52]}  Rfe8 {[%clk 0:01:22]} 17. Re3 {[%clk 0:00:25]}  Bg6 {[%clk 0:01:20]} 18. g4 {[%clk 0:00:23]}  a4 {[%clk 0:01:11]} 19. a3 {[%clk 0:00:21]}  Qe6 {[%clk 0:00:57]} 20. f4 {[%clk 0:00:21]}  f5 {[%clk 0:00:50]} 21. c4 {[%clk 0:00:21]}  c5 {[%clk 0:00:35]} 22. Qd5 {[%clk 0:00:20]}  Qxd5 {[%clk 0:00:32]} 23. cxd5 {[%clk 0:00:21]}  Re7 {[%clk 0:00:20]} 24. Rde1 {[%clk 0:00:17]}  Rae8 {[%clk 0:00:19]} 25. gxf5 {[%clk 0:00:03]}  Bxf5 {[%clk 0:00:20]} 26. Nf1 {[%clk 0:00:02]}  b5 {[%clk 0:00:18]} 27. Rg3 {[%clk 0:00:01]}  g6 {[%clk 0:00:16]} 28. Ne3 {[%clk 0:00:02]}  Kf7 {[%clk 0:00:15]} 29. h4 {[%clk 0:00:03]}  Kf6 {[%clk 0:00:14]} 30. h5 {[%clk 0:00:03]}  b4 {[%clk 0:00:14]} 31. Rh1 {[%clk 0:00:03]}  Rg8 {[%clk 0:00:13]} 32. hxg6 {[%clk 0:00:03]}  Rxg6 {[%clk 0:00:13]} 33. Nxf5 {[%clk 0:00:03]}  Nxf5 {[%clk 0:00:12]} 34. Rxg6+ {[%clk 0:00:03]}  hxg6 {[%clk 0:00:13]} 35. Kd2 {[%clk 0:00:04]}  e3+ {[%clk 0:00:12]} 36. Kd3 {[%clk 0:00:04]}  bxa3 {[%clk 0:00:12]} 37. bxa3 {[%clk 0:00:05]}  e2 {[%clk 0:00:12]} 38. Re1 {[%clk 0:00:04]}  Nd4 {[%clk 0:00:13]} 39. Be4 {[%clk 0:00:05]}  g5 {[%clk 0:00:09]} 40. fxg5+ {[%clk 0:00:04]}  Kxg5 {[%clk 0:00:10]} 41. Bh1 {[%clk 0:00:03]}  Kf4 {[%clk 0:00:10]} 42. Kc4 {[%clk 0:00:04]}  Ke3 {[%clk 0:00:09]} 43. d6 {[%clk 0:00:05]}  Rd7 {[%clk 0:00:09]} 44. Kxc5 {[%clk 0:00:06]}  Kd2 {[%clk 0:00:10]} 45. Rxe2+ {[%clk 0:00:06]}  Nxe2 {[%clk 0:00:10]} 46. Bc6 {[%clk 0:00:06]}  Rd8 {[%clk 0:00:10]} 47. d7 {[%clk 0:00:07]}  Nf4 {[%clk 0:00:10]} 48. Kd6 {[%clk 0:00:08]}  Kc3 {[%clk 0:00:10]} 49. Bxa4 {[%clk 0:00:08]}  Ng6 {[%clk 0:00:09]} 50. Bc6 {[%clk 0:00:08]}  Nf8 {[%clk 0:00:08]} 51. a4 {[%clk 0:00:08]}  Nxd7 {[%clk 0:00:07]} 52. Kc7 {[%clk 0:00:08]}  Nc5 {[%clk 0:00:05]} 53. Kxd8 {[%clk 0:00:07]}  Nxa4 {[%clk 0:00:06]} 1/2-1/2


[Site "https://www.chess.com"]

[Event "Titled Tuesday Blitz May 30 Early 2023"]
[White "Lymar, Vladislav"]
[Black "Matinian, Nikita"]
[WhiteFideId "14162180"]
[BlackFideId "24129100"]
[WhiteElo "2234"]
[BlackElo "2422"]
[Result "1-0"]
[Round "02"]
[TimeControl "180+2"]
[Date "2023.05.30"]
[WhiteClock "0:00:23"]
[BlackClock "0:00:00"]

1. e4 {[%clk 0:03:00]}  d6 {[%clk 0:02:57]} 2. d4 {[%clk 0:03:00]}  g6 {[%clk 0:02:57]} 3. Nc3 {[%clk 0:03:01]}  Bg7 {[%clk 0:02:57]} 4. g3 {[%clk 0:03:01]}  Nf6 {[%clk 0:02:56]} 5. Bg2 {[%clk 0:03:01]}  O-O {[%clk 0:02:56]} 6. Nge2 {[%clk 0:03:02]}  e5 {[%clk 0:02:56]} 7. h3 {[%clk 0:03:01]}  Nc6 {[%clk 0:02:55]} 8. Be3 {[%clk 0:03:00]}  exd4 {[%clk 0:02:50]} 9. Nxd4 {[%clk 0:03:01]}  Re8 {[%clk 0:02:50]} 10. O-O {[%clk 0:02:56]}  Bd7 {[%clk 0:02:48]} 11. f4 {[%clk 0:02:44]}  Nxd4 {[%clk 0:02:45]} 12. Bxd4 {[%clk 0:02:45]}  c5 {[%clk 0:02:46]} 13. Bf2 {[%clk 0:02:42]}  Bc6 {[%clk 0:02:46]} 14. Re1 {[%clk 0:02:41]}  Qc7 {[%clk 0:02:19]} 15. Qd3 {[%clk 0:02:35]}  Rad8 {[%clk 0:02:17]} 16. Rad1 {[%clk 0:02:33]}  a6 {[%clk 0:02:15]} 17. g4 {[%clk 0:02:20]}  b5 {[%clk 0:02:14]} 18. Bg3 {[%clk 0:02:14]}  b4 {[%clk 0:02:13]} 19. Nb1 {[%clk 0:02:11]}  d5 {[%clk 0:02:03]} 20. f5 {[%clk 0:01:49]}  Qb6 {[%clk 0:01:55]} 21. e5 {[%clk 0:01:47]}  Ne4 {[%clk 0:01:41]} 22. Bxe4 {[%clk 0:01:34]}  dxe4 {[%clk 0:01:42]} 23. Qe3 {[%clk 0:01:35]}  Rd4 {[%clk 0:01:30]} 24. c3 {[%clk 0:01:26]}  bxc3 {[%clk 0:01:30]} 25. bxc3 {[%clk 0:01:16]}  Rd3 {[%clk 0:01:15]} 26. Rxd3 {[%clk 0:01:10]}  exd3 {[%clk 0:01:16]} 27. Qxd3 {[%clk 0:01:10]}  Ba8 {[%clk 0:01:05]} 28. Nd2 {[%clk 0:01:06]}  Rd8 {[%clk 0:00:55]} 29. Qe3 {[%clk 0:01:06]}  Qc6 {[%clk 0:00:43]} 30. Ne4 {[%clk 0:01:05]}  c4 {[%clk 0:00:44]} 31. Qc5 {[%clk 0:00:58]}  Qb7 {[%clk 0:00:44]} 32. Qxc4 {[%clk 0:00:57]}  h5 {[%clk 0:00:37]} 33. e6 {[%clk 0:00:56]}  fxe6 {[%clk 0:00:35]} 34. f6 {[%clk 0:00:54]}  Bf8 {[%clk 0:00:21]} 35. Qxe6+ {[%clk 0:00:54]}  Kh8 {[%clk 0:00:21]} 36. f7 {[%clk 0:00:50]}  Rd2 {[%clk 0:00:07]} 37. Qxg6 {[%clk 0:00:38]}  Bc5+ {[%clk 0:00:05]} 38. Kh1 {[%clk 0:00:34]}  Qxe4+ {[%clk 0:00:02]} 39. Rxe4 {[%clk 0:00:27]}  Rd1+ {[%clk 0:00:01]} 40. Kg2 {[%clk 0:00:25]}  Rd2+ {[%clk 0:00:00]} 41. Kf1 {[%clk 0:00:23]} 1-0


[Site "https://www.chess.com"]

[Event "Titled Tuesday Blitz May 30 Early 2023"]
[White "Girsh, Daniel"]
[Black "Aradhya, Garg"]
[WhiteFideId "30949190"]
[BlackFideId "25006746"]
[WhiteElo "2075"]
[BlackElo "2263"]
[Result "1/2-1/2"]
[Round "02"]
[TimeControl "180+2"]
[Date "2023.05.30"]
[WhiteClock "0:00:21"]
[BlackClock "0:00:06"]

1. e4 {[%clk 0:03:00]}  e5 {[%clk 0:02:59]} 2. Nf3 {[%clk 0:03:00]}  Nc6 {[%clk 0:03:00]} 3. Bb5 {[%clk 0:03:00]}  a6 {[%clk 0:03:00]} 4. Ba4 {[%clk 0:03:01]}  Bc5 {[%clk 0:03:00]} 5. c3 {[%clk 0:02:59]}  Nf6 {[%clk 0:03:00]} 6. O-O {[%clk 0:02:53]}  O-O {[%clk 0:02:59]} 7. d4 {[%clk 0:02:51]}  Ba7 {[%clk 0:02:59]} 8. dxe5 {[%clk 0:02:42]}  Nxe4 {[%clk 0:02:59]} 9. Bc2 {[%clk 0:02:37]}  d5 {[%clk 0:02:57]} 10. exd6 {[%clk 0:02:37]}  Nxd6 {[%clk 0:02:56]} 11. Nbd2 {[%clk 0:02:28]}  Bg4 {[%clk 0:02:27]} 12. Ne4 {[%clk 0:02:19]}  Nxe4 {[%clk 0:01:21]} 13. Bxe4 {[%clk 0:02:20]}  Re8 {[%clk 0:01:21]} 14. Qc2 {[%clk 0:02:03]}  g6 {[%clk 0:01:21]} 15. Bh6 {[%clk 0:02:00]}  Bxf3 {[%clk 0:01:12]} 16. Bxf3 {[%clk 0:01:53]}  Qh4 {[%clk 0:01:09]} 17. Be3 {[%clk 0:01:46]}  Bxe3 {[%clk 0:01:08]} 18. fxe3 {[%clk 0:01:46]}  Rxe3 {[%clk 0:01:08]} 19. Qb3 {[%clk 0:01:46]}  Ne5 {[%clk 0:00:24]} 20. Qxb7 {[%clk 0:01:40]}  Rf8 {[%clk 0:00:24]} 21. Qxa6 {[%clk 0:01:30]}  Qg5 {[%clk 0:00:17]} 22. Bd5 {[%clk 0:01:11]}  Rd8 {[%clk 0:00:15]} 23. Rad1 {[%clk 0:01:06]}  Kg7 {[%clk 0:00:13]} 24. Bb3 {[%clk 0:00:57]}  Rxd1 {[%clk 0:00:08]} 25. Rxd1 {[%clk 0:00:57]}  Nf3+ {[%clk 0:00:07]} 26. Kh1 {[%clk 0:00:56]}  Nh4 {[%clk 0:00:07]} 27. Qf1 {[%clk 0:00:52]}  f5 {[%clk 0:00:04]} 28. Rd7+ {[%clk 0:00:50]}  Kh6 {[%clk 0:00:02]} 29. Rd4 {[%clk 0:00:48]}  Re4 {[%clk 0:00:02]} 30. Rxe4 {[%clk 0:00:41]}  fxe4 {[%clk 0:00:03]} 31. Qf8+ {[%clk 0:00:40]}  Kh5 {[%clk 0:00:04]} 32. Bd1+ {[%clk 0:00:41]}  Nf3 {[%clk 0:00:04]} 33. Bxf3+ {[%clk 0:00:37]}  exf3 {[%clk 0:00:04]} 34. Qxf3+ {[%clk 0:00:38]}  Kh6 {[%clk 0:00:04]} 35. Qd1 {[%clk 0:00:33]}  Qe3 {[%clk 0:00:04]} 36. h3 {[%clk 0:00:33]}  Qf2 {[%clk 0:00:03]} 37. Qc1+ {[%clk 0:00:29]}  Kh5 {[%clk 0:00:04]} 38. a4 {[%clk 0:00:28]}  Kh4 {[%clk 0:00:04]} 39. Qd1 {[%clk 0:00:23]}  Kg5 {[%clk 0:00:01]} 40. Qd5+ {[%clk 0:00:23]}  Kh6 {[%clk 0:00:02]} 41. Qc4 {[%clk 0:00:21]}  Qxb2 {[%clk 0:00:02]} 42. a5 {[%clk 0:00:21]}  Qa1+ {[%clk 0:00:02]} 43. Kh2 {[%clk 0:00:21]}  Qxa5 {[%clk 0:00:03]} 44. Qd4 {[%clk 0:00:20]}  Qb6 {[%clk 0:00:02]} 45. Qxb6 {[%clk 0:00:19]}  cxb6 {[%clk 0:00:03]} 46. Kg3 {[%clk 0:00:19]}  Kg5 {[%clk 0:00:04]} 47. Kf3 {[%clk 0:00:19]}  Kf5 {[%clk 0:00:05]} 48. Ke3 {[%clk 0:00:20]}  Ke5 {[%clk 0:00:05]} 49. Kd3 {[%clk 0:00:21]}  Kd5 {[%clk 0:00:06]} 50. c4+ {[%clk 0:00:21]}  Kc5 {[%clk 0:00:06]} 51. Kc3 {[%clk 0:00:22]}  g5 {[%clk 0:00:06]} 52. g3 {[%clk 0:00:21]} 1/2-1/2


[Site "https://www.chess.com"]

[Event "Titled Tuesday Blitz May 30 Early 2023"]
[White "Dudzinski, Pawel"]
[Black "egorchess95"]
[WhiteFideId "1117890"]
[WhiteElo "2099"]
[BlackElo "2712"]
[Result "1-0"]
[Round "02"]
[TimeControl "180+2"]
[Date "2023.05.30"]
[WhiteClock "0:00:04"]
[BlackClock "0:00:07"]

1. e4 {[%clk 0:03:00]}  c5 {[%clk 0:02:17]} 2. c4 {[%clk 0:02:55]}  Nc6 {[%clk 0:02:17]} 3. Nc3 {[%clk 0:02:55]}  g6 {[%clk 0:02:17]} 4. g3 {[%clk 0:02:56]}  Bg7 {[%clk 0:02:17]} 5. Bg2 {[%clk 0:02:57]}  d6 {[%clk 0:02:10]} 6. Rb1 {[%clk 0:02:57]}  Nf6 {[%clk 0:02:03]} 7. a3 {[%clk 0:02:56]}  O-O {[%clk 0:01:59]} 8. b4 {[%clk 0:02:55]}  Nd4 {[%clk 0:01:56]} 9. Nge2 {[%clk 0:02:55]}  e5 {[%clk 0:01:55]} 10. O-O {[%clk 0:02:53]}  b6 {[%clk 0:01:48]} 11. h3 {[%clk 0:02:47]}  Be6 {[%clk 0:01:30]} 12. d3 {[%clk 0:02:40]}  Nh5 {[%clk 0:01:16]} 13. Kh2 {[%clk 0:02:34]}  Rc8 {[%clk 0:01:13]} 14. f4 {[%clk 0:02:31]}  exf4 {[%clk 0:01:12]} 15. Nxf4 {[%clk 0:02:30]}  Nxf4 {[%clk 0:01:11]} 16. Bxf4 {[%clk 0:02:28]}  f5 {[%clk 0:01:12]} 17. bxc5 {[%clk 0:01:55]}  dxc5 {[%clk 0:01:06]} 18. Nd5 {[%clk 0:01:55]}  fxe4 {[%clk 0:01:02]} 19. dxe4 {[%clk 0:01:41]}  Qd7 {[%clk 0:00:59]} 20. Qd2 {[%clk 0:01:22]}  Qf7 {[%clk 0:00:36]} 21. Bd6 {[%clk 0:01:16]}  Qxf1 {[%clk 0:00:33]} 22. Rxf1 {[%clk 0:01:10]}  Rxf1 {[%clk 0:00:33]} 23. Ne7+ {[%clk 0:01:06]}  Kh8 {[%clk 0:00:33]} 24. Nxc8 {[%clk 0:01:06]}  Bxc8 {[%clk 0:00:34]} 25. e5 {[%clk 0:00:50]}  Rf5 {[%clk 0:00:27]} 26. Qe3 {[%clk 0:00:35]}  Rh5 {[%clk 0:00:26]} 27. h4 {[%clk 0:00:23]}  Rf5 {[%clk 0:00:25]} 28. Bh3 {[%clk 0:00:19]}  Rf3 {[%clk 0:00:24]} 29. Qg5 {[%clk 0:00:12]}  Rf2+ {[%clk 0:00:19]} 30. Kh1 {[%clk 0:00:12]}  Bb7+ {[%clk 0:00:18]} 31. Kg1 {[%clk 0:00:10]}  Nf3+ {[%clk 0:00:12]} 32. Kxf2 {[%clk 0:00:11]}  Nxg5 {[%clk 0:00:13]} 33. hxg5 {[%clk 0:00:12]}  Kg8 {[%clk 0:00:13]} 34. e6 {[%clk 0:00:12]}  Bc6 {[%clk 0:00:13]} 35. Bg2 {[%clk 0:00:09]}  Bd4+ {[%clk 0:00:13]} 36. Kf1 {[%clk 0:00:09]}  Be8 {[%clk 0:00:11]} 37. e7 {[%clk 0:00:09]}  Kg7 {[%clk 0:00:10]} 38. Bd5 {[%clk 0:00:09]}  Be3 {[%clk 0:00:09]} 39. Bf4 {[%clk 0:00:07]}  Bd4 {[%clk 0:00:09]} 40. Ke2 {[%clk 0:00:06]}  a6 {[%clk 0:00:05]} 41. Kd3 {[%clk 0:00:06]}  b5 {[%clk 0:00:06]} 42. Be3 {[%clk 0:00:04]}  Bxe3 {[%clk 0:00:04]} 43. Kxe3 {[%clk 0:00:04]}  bxc4 {[%clk 0:00:05]} 44. Bxc4 {[%clk 0:00:05]}  Bf7 {[%clk 0:00:04]} 45. Ke4 {[%clk 0:00:03]}  Be8 {[%clk 0:00:03]} 46. Ke5 {[%clk 0:00:04]}  Bd7 {[%clk 0:00:02]} 47. Kd6 {[%clk 0:00:04]}  Be8 {[%clk 0:00:03]} 48. Kc7 {[%clk 0:00:05]}  h6 {[%clk 0:00:02]} 49. Kd8 {[%clk 0:00:05]}  Ba4 {[%clk 0:00:02]} 50. e8=Q {[%clk 0:00:04]}  Bxe8 {[%clk 0:00:03]} 51. Kxe8 {[%clk 0:00:05]}  hxg5 {[%clk 0:00:04]} 52. Ke7 {[%clk 0:00:05]}  a5 {[%clk 0:00:05]} 53. Ke6 {[%clk 0:00:05]}  Kh6 {[%clk 0:00:05]} 54. g4 {[%clk 0:00:05]}  Kg7 {[%clk 0:00:05]} 55. Ke7 {[%clk 0:00:06]}  Kh6 {[%clk 0:00:04]} 56. Kf6 {[%clk 0:00:06]}  a4 {[%clk 0:00:05]} 57. Kf7 {[%clk 0:00:05]}  Kh7 {[%clk 0:00:05]} 58. Bb5 {[%clk 0:00:06]}  Kh6 {[%clk 0:00:05]} 59. Bxa4 {[%clk 0:00:06]}  c4 {[%clk 0:00:06]} 60. Bc2 {[%clk 0:00:04]}  c3 {[%clk 0:00:07]} 1-0


[Site "https://www.chess.com"]

[Event "Titled Tuesday Blitz May 30 Early 2023"]
[White "Sprenar, Petr"]
[Black "Prohaszka, Peter"]
[WhiteFideId "397164"]
[BlackFideId "726265"]
[WhiteElo "2182"]
[BlackElo "2626"]
[Result "0-1"]
[Round "02"]
[TimeControl "180+2"]
[Date "2023.05.30"]
[WhiteClock "0:00:22"]
[BlackClock "0:00:12"]

1. d4 {[%clk 0:03:00]}  d5 {[%clk 0:02:59]} 2. c4 {[%clk 0:03:01]}  c6 {[%clk 0:02:59]} 3. Nf3 {[%clk 0:02:56]}  Nf6 {[%clk 0:03:00]} 4. Qc2 {[%clk 0:02:54]}  g6 {[%clk 0:02:59]} 5. cxd5 {[%clk 0:02:51]}  cxd5 {[%clk 0:02:58]} 6. Nc3 {[%clk 0:02:51]}  Bg7 {[%clk 0:02:57]} 7. Bf4 {[%clk 0:02:51]}  O-O {[%clk 0:02:55]} 8. e3 {[%clk 0:02:52]}  Nc6 {[%clk 0:02:54]} 9. Ne5 {[%clk 0:02:44]}  Bf5 {[%clk 0:02:11]} 10. Nxc6 {[%clk 0:02:36]}  bxc6 {[%clk 0:02:04]} 11. Bd3 {[%clk 0:02:36]}  Bxd3 {[%clk 0:01:56]} 12. Qxd3 {[%clk 0:02:36]}  Qa5 {[%clk 0:01:52]} 13. O-O {[%clk 0:02:33]}  c5 {[%clk 0:01:52]} 14. dxc5 {[%clk 0:02:30]}  Qxc5 {[%clk 0:01:53]} 15. Be5 {[%clk 0:02:29]}  e6 {[%clk 0:01:43]} 16. Rfc1 {[%clk 0:02:22]}  Rfc8 {[%clk 0:01:42]} 17. Qd4 {[%clk 0:01:58]}  Qxd4 {[%clk 0:01:33]} 18. Bxd4 {[%clk 0:01:59]}  Nd7 {[%clk 0:01:29]} 19. Nb5 {[%clk 0:01:51]}  Bxd4 {[%clk 0:01:16]} 20. exd4 {[%clk 0:01:27]}  a5 {[%clk 0:01:00]} 21. Nd6 {[%clk 0:01:24]}  Rxc1+ {[%clk 0:00:55]} 22. Rxc1 {[%clk 0:01:24]}  Rb8 {[%clk 0:00:55]} 23. Rc8+ {[%clk 0:01:19]}  Rxc8 {[%clk 0:00:43]} 24. Nxc8 {[%clk 0:01:20]}  Nb8 {[%clk 0:00:44]} 25. Na7 {[%clk 0:01:00]}  f6 {[%clk 0:00:39]} 26. Kf1 {[%clk 0:01:00]}  Kf7 {[%clk 0:00:39]} 27. Ke2 {[%clk 0:01:00]}  e5 {[%clk 0:00:40]} 28. dxe5 {[%clk 0:00:38]}  fxe5 {[%clk 0:00:41]} 29. Nb5 {[%clk 0:00:35]}  Nc6 {[%clk 0:00:39]} 30. Kd3 {[%clk 0:00:35]}  Nb4+ {[%clk 0:00:38]} 31. Kc3 {[%clk 0:00:34]}  Nxa2+ {[%clk 0:00:37]} 32. Kb3 {[%clk 0:00:35]}  Nb4 {[%clk 0:00:35]} 33. Nc3 {[%clk 0:00:35]}  Ke6 {[%clk 0:00:31]} 34. Ka4 {[%clk 0:00:35]}  Nd3 {[%clk 0:00:31]} 35. b3 {[%clk 0:00:35]}  Nc5+ {[%clk 0:00:25]} 36. Kxa5 {[%clk 0:00:35]}  Nxb3+ {[%clk 0:00:25]} 37. Kb4 {[%clk 0:00:36]}  Nc1 {[%clk 0:00:24]} 38. Nd1 {[%clk 0:00:36]}  Nd3+ {[%clk 0:00:17]} 39. Kc3 {[%clk 0:00:37]}  Ne1 {[%clk 0:00:17]} 40. g3 {[%clk 0:00:36]}  d4+ {[%clk 0:00:17]} 41. Kc4 {[%clk 0:00:35]}  Kf5 {[%clk 0:00:15]} 42. Kd5 {[%clk 0:00:35]}  h5 {[%clk 0:00:14]} 43. h3 {[%clk 0:00:35]}  g5 {[%clk 0:00:13]} 44. Kc4 {[%clk 0:00:22]}  Ke4 {[%clk 0:00:12]} 0-1


[Site "https://www.chess.com"]